[Event "22nd Hoogeveen Open 2018"]
[Site "Hoogeveen"]
[Date "2018.10.22"]
[Round "3"]
[White "Maters, Arthur"]
[Black "Brands, Kevin"]
[Result "1-0"]
[ECO "B92"]
[WhiteElo "1933"]
[BlackElo "1862"]
[Annotator "NA RC"]
[PlyCount "149"]
[EventDate "2018.10.20"]
[EventType "swiss"]
[EventCountry "NED"]
[SourceTitle "playchess.com"]
[Source "ChessBase"]
[SourceQuality "1"]
[TimeControl "40/5400+30:1800+30"]

1. e4 {[%emt 0:00:00]} c5 {[%emt 0:00:00]} 2. Nf3 {[%emt 0:00:00]} d6 {[%emt 0:00:00]} 3. d4 {[%emt 0:00:00]} cxd4 {[%emt 0:00:00]} 4. Nxd4 {[%emt 0:00:00]} Nf6 {[%emt 0:00:00]} 5. Nc3 {[%emt 0:00:00]} a6 {[%emt 0:00:00]} 6. Be2 {[%emt 0:00:00]} e5 {[%emt 0:00:00]} 7. Nf3 {[%emt 0:00:00]} Be7 {[%emt 0:01:10]} 8. Bg5 {[%emt 0:00:06]} Nbd7 {[%emt 0:01:27]} 9. a4 {[%emt 0:00:12]} O-O {[%emt 0:00:35]} 10. O-O {[%emt 0:00:08]} Re8 {[%emt 0:09:38] B92: Sicilian Najdorf: 6 Be2} (10... b6 11. Bc4 Bb7 12. Qe2 Nxe4 13. Nxe4 Bxe4 14. Qxe4 Bxg5 15. Bxf7+ Kxf7 16. Qd5+ Kg6 17. Qxd6+ Bf6 18. Qd3+ {1-0 (52) Harikrishna,P (2744)-Korobov,A (2652) Huaian 2017}) 11. Nd2 $146 {[%emt 0:12:54]} ({Predecessor:} 11. Re1 Qc7 12. a5 b5 13. axb6 Nxb6 14. Bxf6 Bxf6 15. h3 Bb7 16. Nh2 Red8 17. Ng4 Bg5 18. Bd3 {1-0 (50) Gluckman,P (1779)-Ncube,S (1901) Port Elizabeth 2016}) 11... h6 {[%emt 0:21:37]} 12. Bxf6 {[%emt 0:04:20]} Nxf6 {[%emt 0:00:04]} 13. Nc4 {[%emt 0:02:05]} Be6 {[%emt 0:03:57]} 14. Ne3 {[%emt 0:00:18]} Rc8 {[%emt 0:00:53]} 15. Qd2 {[%emt 0:05:50]} Rc5 {[%emt 0:06:41]} 16. Rfd1 {[%emt 0:01:56]} Qb6 {[%emt 0:08:52]} 17. Rab1 {[%emt 0:01:04]} Qc7 {[%emt 0:00:56]} 18. Rbc1 {[%emt 0:06:53]} Rxc3 {[%emt 0:04:47]} 19. Qxc3 {[%emt 0:02:26]} Qxc3 {[%emt 0:00:04]} 20. bxc3 {[%emt 0:00:08]} Nxe4 {[%emt 0:00:49]} 21. c4 {[%emt 0:06:05]} Nc3 {[%emt 0:00:33]} 22. Rd2 {[%emt 0:00:33]} Nxa4 {[%emt 0:00:04]} 23. Rb1 {[%emt 0:01:51]} Nc5 {[%emt 0:00:51]} 24. Rb6 {[%emt 0:07:45]} Rc8 {[%emt 0:05:55]} 25. g3 {[%emt 0:05:07]} a5 {[%emt 0:02:54]} 26. Rd1 {[%emt 0:03:01]} a4 {[%emt 0:04:27]} 27. Ra1 {[%emt 0:01:07]} Ra8 {[%emt 0:04:13]} 28. Bd1 {[%emt 0:03:21]} a3 {[%emt 0:02:39]} 29. Ra2 {[%emt 0:01:26]} Ne4 {[%emt 0:07:33]} 30. Rb3 {[%emt 0:01:54]} Nd2 {[%emt 0:02:08]} 31. Rbxa3 {[%emt 0:04:30]} Rxa3 {[%emt 0:00:03]} 32. Rxa3 {[%emt 0:00:11]} Nxc4 {[%emt 0:00:09]} 33. Nxc4 {[%emt 0:02:19]} Bxc4 {[%emt 0:00:06]} 34. Ra8+ {[%emt 0:00:06]} Kh7 {[%emt 0:01:45]} 35. Rc8 {[%emt 0:00:47]} b5 {[%emt 0:01:05]} 36. Rc7 {[%emt 0:01:50]} Bf8 {[%emt 0:00:49]} 37. Bf3 {[%emt 0:01:13]} Kg6 {[%emt 0:04:13]} 38. Bc6 {[%emt 0:04:42]} Kf6 {[%emt 0:01:17]} 39. Rb7 {[%emt 0:00:30]} Be7 {[%emt 0:00:14]} 40. Bxb5 {[%emt 0:00:24]} Bxb5 {[%emt 0:00:04]} 41. Rxb5 {[%emt 0:30:11]} Ke6 {[%emt 0:32:05]} 42. c4 {[%emt 0:01:35]} Bd8 {[%emt 0:00:52]} 43. Kf1 {[%emt 0:01:36]} Bg5 {[%emt 0:03:35]} 44. Ke2 {[%emt 0:01:04]} Bc1 {[%emt 0:00:18]} 45. Rb3 {[%emt 0:00:29]} Bg5 {[%emt 0:00:57]} 46. Kd3 {[%emt 0:00:30]} Bd8 {[%emt 0:00:00]} 47. Rb5 {[%emt 0:00:00]} Bc7 {[%emt 0:00:00]} 48. Ke4 {[%emt 0:00:00]} Bd8 {[%emt 0:00:00]} 49. h4 {[%emt 0:00:00]} f5+ {[%emt 0:00:00]} 50. Ke3 {[%emt 0:00:00]} g5 {[%emt 0:00:00]} (50... h5 $16 51. Ke2 g6) 51. h5 {[%emt 0:00:00]} g4 {[%emt 0:00:00]} 52. Rb7 {[%emt 0:00:00]} e4 {[%emt 0:00:00]} 53. Rg7 {[%emt 0:00:00]} Bg5+ {[%emt 0:00:00]} 54. Ke2 {[%emt 0:00:00]} Kf6 {[%emt 0:00:00]} 55. Rg6+ {[%emt 0:00:00]} Ke5 {[%emt 0:00:00]} 56. Kd1 {[%emt 0:00:00]} f4 {[%emt 0:00:00]} (56... e3 $16 {keeps fighting.} 57. Ke2 exf2 58. Kxf2 Bd2) 57. gxf4+ {[%emt 0:00:00]} Bxf4 {[%emt 0:00:00]} 58. Rxg4 {[%emt 0:00:00]} Kf5 {[%emt 0:00:00]} 59. Rg6 {[%emt 0:00:00]} Ke5 {[%emt 0:00:00]} 60. Ke2 {[%emt 0:01:40]} Kd4 {[%emt 0:00:00]} 61. Rf6 {[%emt 0:02:53]} Ke5 {[%emt 0:00:00]} 62. Rf8 {[%emt 0:00:06]} Bg5 {[%emt 0:00:00]} 63. f3 {[%emt 0:03:27]} exf3+ $18 {[%emt 0:00:37]} (63... e3 64. Re8+ Kf5) 64. Kxf3 {[%emt 0:00:40]} Kd4 {[%emt 0:01:53]} 65. Rf5 {[%emt 0:00:55]} Be7 {[%emt 0:01:46]} 66. Rf7 {[%emt 0:00:19]} Bg5 {[%emt 0:00:13]} 67. Rd7 {[%emt 0:00:13]} Kxc4 {[%emt 0:02:18]} 68. Rxd6 {[%emt 0:00:07]} Kc5 {[%emt 0:00:04]} 69. Rd1 {[%emt 0:00:08]} Kc6 {[%emt 0:01:11]} 70. Ke4 {[%emt 0:00:04]} Kc7 {[%emt 0:00:11]} 71. Kf5 {[%emt 0:00:07]} Be3 {[%emt 0:01:23]} 72. Kg6 {[%emt 0:00:06]} Bg5 {[%emt 0:00:50]} 73. Kg7 {[%emt 0:00:05]} Be3 {[%emt 0:00:13]} 74. Re1 {[%emt 0:00:05]} Bg5 {[%emt 0:00:17]} 75. Re6 {[%emt 0:00:10]} 1-0

[Event "22nd Hoogeveen Open 2018"]
[Site "Hoogeveen"]
[Date "2018.10.22"]
[Round "3"]
[White "Shakhverdian, William"]
[Black "Van de Pavoordt, Max"]
[Result "1/2-1/2"]
[ECO "C01"]
[WhiteElo "1903"]
[BlackElo "2034"]
[Annotator "NA RC"]
[PlyCount "80"]
[EventDate "2018.10.20"]
[EventType "swiss"]
[EventCountry "NED"]
[SourceTitle "playchess.com"]
[Source "ChessBase"]
[SourceQuality "1"]
[TimeControl "40/5400+30:1800+30"]

1. e4 {[%emt 0:00:00]} e6 {[%emt 0:00:00]} 2. d4 {[%emt 0:00:13]} d5 {[%emt 0:00:00]} 3. exd5 {[%emt 0:00:00]} exd5 {[%emt 0:00:13]} 4. Nf3 {[%emt 0:00:00]} Nf6 {[%emt 0:00:15]} 5. Bd3 {[%emt 0:00:00]} Bd6 {[%emt 0:00:57]} 6. O-O {[%emt 0:00:00]} O-O {[%emt 0:00:09]} 7. Bg5 {[%emt 0:00:00]} Bg4 {[%emt 0:02:07]} 8. Nbd2 {[%emt 0:01:47]} c6 {[%emt 0:00:53]} 9. c3 {[%emt 0:00:06]} Nbd7 {[%emt 0:00:21]} 10. Qc2 {[%emt 0:00:16]} Qc7 {[%emt 0:01:00]} 11. Rfe1 {[%emt 0:00:22]} Rfe8 {[%emt 0:00:35]} 12. Bh4 {[%emt 0:06:27]} Bh5 {[%emt 0:03:13]} 13. Bg3 {[%emt 0:04:01]} Bg6 {[%emt 0:00:11]} 14. Bxg6 {[%emt 0:05:40]} hxg6 {[%emt 0:00:38]} 15. Rxe8+ {[%emt 0:01:09]} Rxe8 {[%emt 0:00:32]} 16. Re1 {[%emt 0:03:47]} Rxe1+ {[%emt 0:00:57]} 17. Nxe1 {[%emt 0:00:07]} Bxg3 {[%emt 0:02:06]} 18. hxg3 {[%emt 0:00:17]} Nb6 {[%emt 0:00:40]} 19. Nd3 {[%emt 0:00:39]} Qe7 {[%emt 0:01:31]} 20. Qd1 {[%emt 0:03:52]} Nc8 {[%emt 0:03:09]} 21. Kf1 {[%emt 0:00:46]} Nd6 {[%emt 0:00:07]} 22. Qe2 {[%emt 0:07:04]} Kf8 {[%emt 0:01:18]} 23. f3 {[%emt 0:02:52]} Qc7 {[%emt 0:05:50]} 24. g4 {[%emt 0:00:55]} Nd7 {[%emt 0:01:30]} 25. Ne5 {[%emt 0:04:45]} Nxe5 {[%emt 0:02:27]} 26. Qxe5 {[%emt 0:00:24]} Ne8 {[%emt 0:00:30]} 27. Qxc7 {[%emt 0:01:16]} Nxc7 {[%emt 0:00:02]} 28. Ke2 {[%emt 0:00:10]} Ne6 {[%emt 0:00:15]} 29. Ke3 {[%emt 0:00:27]} Ke7 {[%emt 0:00:40]} 30. f4 {[%emt 0:00:10]} Kd6 {[%emt 0:02:42]} 31. Nf3 {[%emt 0:04:41]} f6 {[%emt 0:01:00]} 32. Nh4 {[%emt 0:00:39]} Nxf4 {[%emt 0:06:16]} 33. Kxf4 {[%emt 0:01:40]} g5+ {[%emt 0:00:14]} 34. Kg3 {[%emt 0:00:16]} gxh4+ {[%emt 0:00:13]} 35. Kxh4 {[%emt 0:00:07]} g6 {[%emt 0:02:01]} 36. g5 {[%emt 0:01:08]} f5 {[%emt 0:00:15]} 37. Kg3 {[%emt 0:00:06]} b6 {[%emt 0:02:55]} 38. Kf4 {[%emt 0:03:05]} c5 {[%emt 0:00:56]} 39. b4 {[%emt 0:01:46]} c4 {[%emt 0:03:06]} 40. b5 {[%emt 0:00:10]} Ke6 {[%emt 0:00:23]} 1/2-1/2

[Event "22nd Hoogeveen Open 2018"]
[Site "Hoogeveen"]
[Date "2018.10.22"]
[Round "3"]
[White "Husers, Yannic"]
[Black "Van Foreest, Machteld"]
[Result "1-0"]
[ECO "C29"]
[WhiteElo "1866"]
[BlackElo "1934"]
[Annotator "NA RC"]
[PlyCount "121"]
[EventDate "2018.10.20"]
[EventType "swiss"]
[EventCountry "NED"]
[SourceTitle "playchess.com"]
[Source "ChessBase"]
[SourceQuality "1"]
[TimeControl "40/5400+30:1800+30"]

1. e4 {[%emt 0:01:54]} e5 {[%emt 0:00:13]} 2. Nc3 {[%emt 0:00:09]} Nf6 {[%emt 0:00:09]} 3. f4 {[%emt 0:00:08]} d5 {[%emt 0:07:54]} 4. fxe5 {[%emt 0:09:45]} Nxe4 {[%emt 0:01:09]} 5. Nf3 {[%emt 0:00:40]} Be7 {[%emt 0:04:57]} 6. g3 {[%emt 0:08:51] C29: Vienna Game: 2...Nf6 3 f4} (6. Qe2 Nxc3 7. dxc3 Be6 8. Bf4 c5 9. O-O-O Nc6 10. h4 h6 11. g3 Qa5 12. Kb1 O-O-O 13. Bh3 Qc7 14. Bxe6+ fxe6 15. Qd3 {½-½ (32) Popov,I (2632)-Sargissian,G (2671) Khanty-Mansiysk 2013}) 6... O-O {[%emt 0:01:57]} 7. Bg2 {[%emt 0:04:07]} f6 $146 {[%emt 0:05:23]} ({Predecessor:} 7... c5 8. O-O Nc6 9. d3 Nxc3 10. bxc3 f6 11. d4 fxe5 12. dxe5 Be6 13. Rb1 Qd7 {0-1 (30) Zamudio,J (2214)-Vujadinovic,M (2218) IECG email 1999}) 8. O-O {[%emt 0:13:42]} Bg4 {[%emt 0:02:40]} 9. Qe1 {[%emt 0:09:40]} Bc5+ {[%emt 0:14:29]} 10. Kh1 {[%emt 0:02:39]} Nf2+ {[%emt 0:01:48]} 11. Rxf2 {[%emt 0:00:08]} Bxf2 {[%emt 0:00:13]} 12. Qxf2 {[%emt 0:00:09]} fxe5 {[%emt 0:00:30]} 13. d3 {[%emt 0:09:43]} Qf6 {[%emt 0:06:01]} 14. Bf4 {[%emt 0:04:07]} exf4 {[%emt 0:04:40]} 15. Nxd5 {[%emt 0:01:17]} Qd6 {[%emt 0:02:09]} 16. Nxf4 {[%emt 0:01:54]} Bxf3 {[%emt 0:03:46]} 17. Bxf3 {[%emt 0:01:25]} Nc6 {[%emt 0:03:38]} 18. Qg2 {[%emt 0:02:24]} Rae8 {[%emt 0:02:37]} 19. Be4 {[%emt 0:01:23]} Qf6 {[%emt 0:07:08]} 20. c3 {[%emt 0:05:10]} Qd6 {[%emt 0:08:36]} 21. d4 {[%emt 0:03:38]} Kh8 {[%emt 0:03:47]} 22. Re1 {[%emt 0:00:27]} Re7 {[%emt 0:02:27]} 23. Qh3 {[%emt 0:03:00]} Qh6 {[%emt 0:00:05]} 24. Qg4 {[%emt 0:00:37]} Rfe8 {[%emt 0:00:50]} 25. Nd5 {[%emt 0:00:23]} Rxe4 {[%emt 0:00:12]} 26. Rxe4 {[%emt 0:00:43]} Qc1+ {[%emt 0:00:04]} 27. Kg2 {[%emt 0:00:10]} Qc2+ {[%emt 0:00:27]} 28. Kf3 {[%emt 0:00:37]} Qd1+ {[%emt 0:00:04]} 29. Kg2 {[%emt 0:03:03]} Qc2+ {[%emt 0:04:59]} 30. Kf3 {[%emt 0:00:56]} Rf8+ {[%emt 0:01:49]} 31. Rf4 {[%emt 0:01:44]} Rxf4+ {[%emt 0:05:42]} 32. Nxf4 {[%emt 0:00:22]} Qd1+ {[%emt 0:00:37]} 33. Ne2 {[%emt 0:00:06]} h6 {[%emt 0:00:37]} 34. Kf2 {[%emt 0:04:39]} Qd2 {[%emt 0:00:29]} 35. Qc8+ {[%emt 0:00:17]} Kh7 {[%emt 0:00:01]} 36. Qxb7 {[%emt 0:00:22]} Ne7 {[%emt 0:01:32]} 37. Qe4+ {[%emt 0:02:39]} Ng6 {[%emt 0:00:04]} 38. h4 {[%emt 0:00:09]} h5 {[%emt 0:00:14]} 39. Qf5 {[%emt 0:01:16]} Kh6 {[%emt 0:00:26]} 40. Kf3 {[%emt 0:01:29]} c6 {[%emt 0:01:07]} 41. a4 {[%emt 0:31:45]} a5 {[%emt 0:33:09]} 42. Qxa5 {[%emt 0:00:00]} Ne7 {[%emt 0:00:00]} 43. Qg5+ {[%emt 0:00:00]} Qxg5 {[%emt 0:00:00]} 44. hxg5+ {[%emt 0:00:00]} Kxg5 {[%emt 0:00:00]} 45. Nf4 {[%emt 0:00:00]} h4 {[%emt 0:00:00]} 46. a5 {[%emt 0:00:00]} hxg3 {[%emt 0:00:00]} 47. Kxg3 {[%emt 0:00:00]} Nf5+ {[%emt 0:00:00]} 48. Kf3 {[%emt 0:00:00]} Nd6 {[%emt 0:00:00]} 49. Ne6+ {[%emt 0:00:00]} Kf6 {[%emt 0:00:00]} 50. Nd8 {[%emt 0:00:00]} Nc4 {[%emt 0:00:00]} 51. a6 {[%emt 0:00:00]} Ke7 {[%emt 0:00:00]} 52. Nxc6+ {[%emt 0:00:00]} Kd6 {[%emt 0:00:00] [#]} 53. Ne5 $1 {[%emt 0:00:00]} Nb6 {[%emt 0:00:00]} 54. c4 {[%emt 0:00:00]} Nc8 {[%emt 0:00:00]} 55. b4 {[%emt 0:00:00]} Na7 {[%emt 0:00:00]} 56. b5 {[%emt 0:00:00]} Kc7 {[%emt 0:00:00]} 57. Nd3 $18 {[%emt 0:00:00]} Kb6 {[%emt 0:00:00]} 58. d5 {[%emt 0:00:00]} Kc7 {[%emt 0:00:00]} 59. Ke4 {[%emt 0:00:00]} Kd7 {[%emt 0:00:00]} 60. b6 {[%emt 0:00:00]} Nc8 {[%emt 0:00:00]} 61. c5 {[%emt 0:00:00]} 1-0

[Event "22nd Hoogeveen Open 2018"]
[Site "Hoogeveen"]
[Date "2018.10.22"]
[Round "3"]
[White "Achuthan, Dylan"]
[Black "Minko, Dmitry"]
[Result "0-1"]
[ECO "A06"]
[WhiteElo "1751"]
[BlackElo "2011"]
[Annotator "NA RC"]
[PlyCount "82"]
[EventDate "2018.10.20"]
[EventType "swiss"]
[EventCountry "NED"]
[SourceTitle "playchess.com"]
[Source "ChessBase"]
[SourceQuality "1"]
[TimeControl "40/5400+30:1800+30"]

1. Nf3 {[%emt 0:00:00]} d5 {[%emt 0:29:31]} 2. b3 {[%emt 0:00:00]} c5 {[%emt 0:02:15]} 3. Bb2 {[%emt 0:00:00]} Bf5 {[%emt 0:00:57] A06: Réti Opening:1 Nf3 d5} (3... Nf6 4. e3 g6 5. Bxf6 exf6 6. c3 Nc6 7. d4 b6 8. Bb5 Bb7 9. O-O a6 10. Bd3 Bd6 11. Re1 O-O 12. g3 Qc7 {½-½ (73) Nakamura,H (2786)-Caruana,F (2802) chess.com INT 2017}) 4. e3 {[%emt 0:01:08]} Nf6 {[%emt 0:13:08]} 5. Bb5+ {[%emt 0:01:08]} Nbd7 {[%emt 0:01:28]} 6. O-O {[%emt 0:00:26]} a6 {[%emt 0:03:17]} 7. Bxd7+ {[%emt 0:00:20]} Qxd7 {[%emt 0:00:58]} 8. Ne5 {[%emt 0:00:51]} Qc8 $146 {[%emt 0:14:31]} ({Predecessor:} 8... Qc7 9. d3 Nd7 10. Qf3 e6 11. Nxf7 Kxf7 12. e4 {1-0 (24) Karlsson,L (2405)-Lputian,S (2445) Erevan (Armenia) 1980}) 9. d3 {[%emt 0:01:53]} Nd7 {[%emt 0:04:45]} 10. f4 {[%emt 0:01:44]} Nxe5 {[%emt 0:03:15]} 11. Bxe5 {[%emt 0:02:32]} d4 {[%emt 0:00:32]} 12. e4 {[%emt 0:02:33]} Bg4 {[%emt 0:04:25]} 13. Qe1 {[%emt 0:00:12]} f6 {[%emt 0:00:18]} 14. f5 {[%emt 0:00:33]} Bh5 {[%emt 0:00:21]} 15. Bf4 {[%emt 0:01:07]} e5 {[%emt 0:00:54]} 16. Bc1 {[%emt 0:03:53]} Qc6 {[%emt 0:01:51]} 17. Nd2 {[%emt 0:04:18]} Bd6 {[%emt 0:00:35]} 18. Qh4 {[%emt 0:02:19]} Bf7 {[%emt 0:00:19]} 19. Qg3 {[%emt 0:01:29]} Rg8 {[%emt 0:01:10]} 20. Qh3 {[%emt 0:01:09]} Ke7 {[%emt 0:04:00]} 21. Qf3 {[%emt 0:05:01]} Raf8 {[%emt 0:00:46]} 22. Rf2 {[%emt 0:01:39]} Kd8 {[%emt 0:01:58]} 23. Nf1 {[%emt 0:01:08]} Kc7 {[%emt 0:00:26]} 24. Ng3 {[%emt 0:01:20]} Kd7 {[%emt 0:02:59]} 25. a4 {[%emt 0:00:42]} b5 {[%emt 0:00:36]} 26. axb5 {[%emt 0:03:52]} axb5 {[%emt 0:00:01]} 27. Ba3 {[%emt 0:01:30]} Ra8 {[%emt 0:01:00]} 28. Rff1 {[%emt 0:00:45]} Ra6 {[%emt 0:00:26]} 29. Qg4 {[%emt 0:03:01]} Ke7 {[%emt 0:03:02]} 30. Rfb1 {[%emt 0:14:11]} Rga8 {[%emt 0:01:49]} 31. Bb2 {[%emt 0:02:07]} Rxa1 {[%emt 0:00:01]} 32. Rxa1 {[%emt 0:01:01]} Rxa1+ {[%emt 0:00:01]} 33. Bxa1 {[%emt 0:00:01]} Qa6 {[%emt 0:00:19]} 34. Qd1 {[%emt 0:01:18]} Qa2 {[%emt 0:00:30]} 35. Qc1 {[%emt 0:00:00]} c4 {[%emt 0:00:46]} 36. bxc4 {[%emt 0:00:26]} Ba3 {[%emt 0:00:15]} 37. Qe1 {[%emt 0:00:55]} bxc4 {[%emt 0:01:02]} 38. Ne2 {[%emt 0:03:32]} (38. h3 $142) 38... Qxc2 $19 {[%emt 0:01:03]} 39. Qa5 {[%emt 0:01:10]} Qb1+ {[%emt 0:00:47]} 40. Kf2 {[%emt 0:00:16]} Qxa1 {[%emt 0:00:27]} 41. Qc7+ {[%emt 0:30:25]} Kf8 {[%emt 0:30:04]} 0-1

[Event "22nd Hoogeveen Open 2018"]
[Site "Hoogeveen"]
[Date "2018.10.22"]
[Round "4"]
[White "Colijn, Stefan"]
[Black "Elgersma, Onno"]
[Result "0-1"]
[ECO "D02"]
[WhiteElo "2340"]
[BlackElo "2223"]
[Annotator "NA"]
[PlyCount "63"]
[EventDate "2018.10.20"]
[EventType "swiss"]
[EventCountry "NED"]
[SourceTitle "playchess.com"]
[Source "ChessBase"]
[SourceQuality "1"]
[TimeControl "40/5400+30:1800+30"]

1. d4 {[%emt 0:00:00]} Nf6 {[%emt 0:00:00]} 2. Nf3 {[%emt 0:00:00]} e6 {[%emt 0:00:00]} 3. Bf4 {[%emt 0:00:00]} d5 {[%emt 0:00:19]} 4. e3 {[%emt 0:00:00]} c5 {[%emt 0:00:23]} 5. c3 {[%emt 0:00:03]} Nc6 {[%emt 0:00:24]} 6. Bd3 {[%emt 0:01:05]} Be7 {[%emt 0:06:33]} 7. h3 {[%emt 0:00:15]} Bd6 {[%emt 0:00:22]} 8. dxc5 {[%emt 0:09:48]} Bxc5 {[%emt 0:03:34]} 9. Nbd2 {[%emt 0:05:04]} O-O {[%emt 0:02:09]} 10. e4 {[%emt 0:03:08]} e5 {[%emt 0:10:35]} 11. Bg5 {[%emt 0:06:36]} Be6 {[%emt 0:07:12]} 12. O-O {[%emt 0:09:42]} a5 {[%emt 0:05:13]} 13. Qe2 {[%emt 0:02:45]} h6 {[%emt 0:13:13]} 14. Bxf6 {[%emt 0:09:25]} Qxf6 {[%emt 0:00:18]} 15. exd5 {[%emt 0:00:37]} Bxd5 {[%emt 0:00:20]} 16. Ne4 {[%emt 0:00:29]} Qe7 {[%emt 0:04:09]} 17. Bc4 {[%emt 0:05:29]} Bxe4 {[%emt 0:08:04]} 18. Qxe4 $11 {[%emt 0:00:31]} Kh8 {[%emt 0:00:10]} 19. Bd5 {[%emt 0:13:34]} f5 {[%emt 0:02:58]} 20. Qh4 {[%emt 0:04:59]} Rf6 {[%emt 0:03:14]} 21. Qh5 {[%emt 0:02:02]} e4 {[%emt 0:01:31]} 22. Nh4 {[%emt 0:02:00]} Qe8 {[%emt 0:15:19]} 23. Qxe8+ {[%emt 0:02:21]} Rxe8 {[%emt 0:00:24]} 24. g4 {[%emt 0:01:02]} fxg4 {[%emt 0:01:14]} 25. hxg4 {[%emt 0:00:06]} Ne5 {[%emt 0:00:29]} 26. Bxe4 {[%emt 0:12:49]} Nxg4 {[%emt 0:01:02]} 27. Bf5 {[%emt 0:01:38]} Ne5 {[%emt 0:01:44]} 28. Kh1 {[%emt 0:07:30]} g5 {[%emt 0:02:12]} 29. f4 {[%emt 0:00:01]} Nc4 {[%emt 0:00:46]} 30. fxg5 {[%emt 0:01:07]} hxg5 {[%emt 0:00:25]} 31. Bd3 {[%emt 0:00:46]} Rh6 {[%emt 0:00:14]} 32. Kg2 {[%emt 0:00:00]} 0-1

[Event "22nd Hoogeveen Open 2018"]
[Site "Hoogeveen"]
[Date "2018.10.22"]
[Round "4"]
[White "Bertholee, Rob"]
[Black "Rakshitta, Ravi"]
[Result "0-1"]
[ECO "C44"]
[WhiteElo "2334"]
[BlackElo "2160"]
[Annotator "NA"]
[PlyCount "108"]
[EventDate "2018.10.20"]
[EventType "swiss"]
[EventCountry "NED"]
[SourceTitle "playchess.com"]
[Source "ChessBase"]
[SourceQuality "1"]
[TimeControl "40/5400+30:1800+30"]

1. e4 {[%emt 0:00:00]} e5 {[%emt 0:01:25]} 2. Nf3 {[%emt 0:00:00]} Nc6 {[%emt 0:00:10]} 3. c3 {[%emt 0:00:00]} d5 {[%emt 0:00:10]} 4. Qa4 {[%emt 0:00:00]} Bd7 {[%emt 0:05:45]} 5. exd5 {[%emt 0:00:03]} Nd4 {[%emt 0:00:08]} 6. Qd1 {[%emt 0:00:04]} Nxf3+ {[%emt 0:00:05]} 7. Qxf3 {[%emt 0:00:04]} Nf6 {[%emt 0:00:08]} 8. Bc4 {[%emt 0:00:22]} Bd6 {[%emt 0:00:29]} 9. d3 {[%emt 0:01:32]} Bg4 {[%emt 0:04:19]} 10. Qe3 {[%emt 0:21:12]} Qe7 {[%emt 0:02:22]} 11. h3 {[%emt 0:06:52]} Bf5 {[%emt 0:03:00]} 12. Nd2 {[%emt 0:05:34]} Bc5 {[%emt 0:13:18]} 13. Bb5+ {[%emt 0:19:32]} Nd7 {[%emt 0:11:26]} 14. Qf3 {[%emt 0:01:34]} Bg6 {[%emt 0:05:36]} 15. d6 {[%emt 0:03:59]} Qxd6 {[%emt 0:02:30]} 16. Qxb7 {[%emt 0:00:08]} O-O {[%emt 0:00:46]} 17. Qc6 {[%emt 0:03:45]} Qxc6 {[%emt 0:01:41]} 18. Bxc6 {[%emt 0:00:00]} Rad8 {[%emt 0:00:05]} 19. Ne4 {[%emt 0:00:25]} Be7 {[%emt 0:01:25]} 20. g4 {[%emt 0:12:11]} Nc5 {[%emt 0:01:10]} 21. Nxc5 {[%emt 0:00:27]} Bxc5 {[%emt 0:00:01]} 22. Be4 {[%emt 0:01:11]} f5 {[%emt 0:00:02]} 23. gxf5 {[%emt 0:00:20]} Bxf5 {[%emt 0:00:03]} 24. Rh2 {[%emt 0:01:29]} Bxe4 {[%emt 0:02:47]} 25. dxe4 {[%emt 0:00:02]} Rd3 {[%emt 0:00:34]} 26. Ke2 {[%emt 0:06:16]} Rdf3 {[%emt 0:00:30]} 27. Be3 {[%emt 0:00:56]} Bxe3 {[%emt 0:00:07]} 28. fxe3 {[%emt 0:00:03]} Rg3 {[%emt 0:00:26]} 29. Rd1 {[%emt 0:08:54]} Rff3 {[%emt 0:01:38]} 30. Rd8+ {[%emt 0:00:16]} Kf7 {[%emt 0:00:02]} 31. Rd7+ {[%emt 0:03:57]} Kf6 {[%emt 0:00:01]} 32. Rxc7 {[%emt 0:02:09]} Rxe3+ {[%emt 0:00:20]} 33. Kf1 {[%emt 0:02:02]} Ref3+ {[%emt 0:00:36]} 34. Ke1 {[%emt 0:00:58]} Rxh3 {[%emt 0:01:37]} 35. Rxh3 {[%emt 0:00:03]} Rxh3 {[%emt 0:00:07]} 36. Rxa7 {[%emt 0:00:19]} Rh1+ {[%emt 0:01:11]} 37. Kd2 {[%emt 0:00:30]} Rh2+ {[%emt 0:00:02]} 38. Kc1 {[%emt 0:01:12]} g5 {[%emt 0:00:13]} 39. a4 {[%emt 0:00:35]} g4 {[%emt 0:00:08]} 40. Ra8 {[%emt 0:00:19]} g3 {[%emt 0:00:10]} 41. Rg8 {[%emt 0:03:09]} g2 {[%emt 0:00:01]} 42. b4 {[%emt 0:01:46]} Rh1+ {[%emt 0:00:07]} 43. Kb2 {[%emt 0:00:07]} g1=Q {[%emt 0:00:05]} 44. Rxg1 {[%emt 0:00:05]} Rxg1 {[%emt 0:00:04]} 45. a5 {[%emt 0:00:01]} Rg8 {[%emt 0:01:34]} 46. b5 {[%emt 0:00:10]} Ke6 {[%emt 0:00:06]} 47. Kb3 {[%emt 0:00:25]} h5 {[%emt 0:01:17]} 48. a6 {[%emt 0:00:33]} Kd6 {[%emt 0:00:06]} 49. Kb4 {[%emt 0:00:15]} h4 {[%emt 0:00:30]} 50. b6 {[%emt 0:04:09]} h3 {[%emt 0:00:02]} 51. a7 {[%emt 0:00:04]} Kc6 {[%emt 0:00:03]} 52. Ka5 {[%emt 0:00:07]} h2 {[%emt 0:00:07]} 53. Ka6 {[%emt 0:00:10]} h1=Q {[%emt 0:00:05]} 54. a8=B+ {[%emt 0:00:17]} Rxa8# {[%emt 0:00:56]} 0-1

[Event "22nd Hoogeveen Open 2018"]
[Site "Hoogeveen"]
[Date "2018.10.22"]
[Round "4"]
[White "Tomilova, Elena"]
[Black "Van Randtwijk, Mick"]
[Result "1-0"]
[ECO "A20"]
[WhiteElo "2328"]
[BlackElo "1979"]
[Annotator "NA"]
[PlyCount "63"]
[EventDate "2018.10.20"]
[EventType "swiss"]
[EventCountry "NED"]
[SourceTitle "playchess.com"]
[Source "ChessBase"]
[SourceQuality "1"]
[TimeControl "40/5400+30:1800+30"]

1. c4 {[%emt 0:00:00]} e5 {[%emt 0:00:00]} 2. g3 {[%emt 0:00:00]} Nf6 {[%emt 0:00:00]} 3. Bg2 {[%emt 0:00:00]} d5 {[%emt 0:00:13]} 4. cxd5 {[%emt 0:00:00]} Nxd5 {[%emt 0:00:05]} 5. Nf3 {[%emt 0:00:00]} Nc6 {[%emt 0:00:40]} 6. O-O {[%emt 0:00:00]} Be7 {[%emt 0:00:45]} 7. d4 {[%emt 0:00:09]} exd4 {[%emt 0:02:51]} 8. Nxd4 {[%emt 0:00:07]} Nxd4 {[%emt 0:00:15]} 9. Qxd4 {[%emt 0:00:04]} Nf6 {[%emt 0:00:10]} 10. Qa4+ {[%emt 0:00:08] A20: Englische Eröffnung} Bd7 {[%emt 0:02:05]} 11. Qb3 {[%emt 0:00:24]} Rb8 {[%emt 0:00:47]} 12. Bf4 {[%emt 0:03:34]} O-O {[%emt 0:05:40]} 13. Rd1 {[%emt 0:05:09]} Qe8 $146 {[%emt 0:03:43]} ({Vorgänger:} 13... Qc8 14. Qc2 Ne8 15. Nc3 Bd8 16. Rac1 a6 17. Nd5 Bc6 18. Be4 h6 19. Bf5 {1-0 (19) Chatalbashev,B (2534)-Huels,M (1969) Berlin 2016}) 14. Nc3 {[%emt 0:01:07]} Bd8 {[%emt 0:02:12]} 15. Rac1 {[%emt 0:07:39]} b5 {[%emt 0:03:41]} 16. Nd5 {[%emt 0:06:44]} Be6 {[%emt 0:02:12]} 17. Nxf6+ {[%emt 0:05:14]} Bxf6 {[%emt 0:00:19]} 18. Qa3 {[%emt 0:00:17]} Bc4 {[%emt 0:07:11]} 19. Bxc7 {[%emt 0:04:13]} Rc8 {[%emt 0:00:16]} 20. Qa5 {[%emt 0:13:43]} Bxb2 {[%emt 0:14:46]} 21. Rc2 {[%emt 0:00:34]} Be5 {[%emt 0:00:27]} 22. Rxc4 {[%emt 0:01:11]} bxc4 {[%emt 0:01:48]} 23. Bxe5 $18 {[%emt 0:00:44]} f6 {[%emt 0:01:56]} 24. Bc3 {[%emt 0:04:08]} Qxe2 {[%emt 0:01:59]} 25. Re1 {[%emt 0:00:21]} Qd3 {[%emt 0:00:27]} 26. Be4 {[%emt 0:00:57]} Qd8 {[%emt 0:01:07]} 27. Qh5 {[%emt 0:02:10]} g6 {[%emt 0:01:28]} 28. Bxg6 {[%emt 0:00:18]} hxg6 {[%emt 0:00:04]} 29. Qxg6+ {[%emt 0:00:04]} Kh8 {[%emt 0:00:04]} 30. Re4 {[%emt 0:00:40]} Qd1+ {[%emt 0:00:23]} 31. Be1 {[%emt 0:00:27]} f5 {[%emt 0:00:17]} 32. Rh4+ {[%emt 0:00:39]} 1-0